[Event "*** Titled Tuesday Blitz"]
[Site "Chess.com"]
[Date "2020.04.14"]
[Round "6"]
[White "AnnaChessLook"]
[Black "HashtagChess"]
[Result "1-0"]
[WhiteElo "2229"]
[BlackElo "1639"]
[TimeControl "180+1"]
[EndTime "11:02:37 PDT"]
[Termination "AnnaChessLook won by resignation"]

1. d4 {[%clk 0:02:51.9]} 1... d5 {[%clk 0:02:59.4]} 2. c4 {[%clk 0:02:50.9]}
2... c6 {[%clk 0:02:59.3]} 3. Nf3 {[%clk 0:02:50.8]} 3... Nf6 {[%clk 0:02:58.9]}
4. Nc3 {[%clk 0:02:50.2]} 4... e6 {[%clk 0:02:58.2]} 5. Bg5 {[%clk 0:02:47.3]}
5... dxc4 {[%clk 0:02:57.5]} 6. e4 {[%clk 0:02:33.8]} 6... b5 {[%clk 0:02:56.3]}
7. e5 {[%clk 0:02:28.4]} 7... h6 {[%clk 0:02:55.2]} 8. Bd2 {[%clk 0:02:28.8]}
8... Nd5 {[%clk 0:02:43.1]} 9. Be2 {[%clk 0:02:23.7]} 9... Bb7 {[%clk
0:02:37.4]} 10. a4 {[%clk 0:02:23.1]} 10... b4 {[%clk 0:02:33.2]} 11. Ne4 {[%clk
0:02:22.8]} 11... c5 {[%clk 0:01:59.6]} 12. Bxc4 {[%clk 0:02:02.5]} 12... cxd4
{[%clk 0:01:51.8]} 13. O-O {[%clk 0:01:56.1]} 13... Bc5 {[%clk 0:01:38.2]} 14.
Nxc5 {[%clk 0:01:37.4]} 14... Bc6 {[%clk 0:01:25.7]} 15. Nxd4 {[%clk 0:01:34.5]}
15... O-O {[%clk 0:01:24.1]} 16. Nxc6 {[%clk 0:01:31.9]} 16... Nxc6 {[%clk
0:01:23.3]} 17. Qe2 {[%clk 0:01:25.5]} 17... Nd4 {[%clk 0:01:19.4]} 18. Qg4
{[%clk 0:01:10.1]} 18... Nf5 {[%clk 0:01:11.5]} 19. Ne4 {[%clk 0:00:58.5]} 19...
Kh8 {[%clk 0:01:02.4]} 20. Bxd5 {[%clk 0:00:48.6]} 20... Qxd5 {[%clk 0:01:00.7]}
21. Bxb4 {[%clk 0:00:48.4]} 21... Rfd8 {[%clk 0:00:47.8]} 22. Nd6 {[%clk
0:00:47.9]} 22... Nxd6 {[%clk 0:00:32.6]} 23. Bxd6 {[%clk 0:00:48.8]} 23... Rac8
{[%clk 0:00:28]} 24. Rac1 {[%clk 0:00:33.4]} 1-0

[Event "*** Titled Tuesday Blitz"]
[Site "Chess.com"]
[Date "2020.04.14"]
[Round "6"]
[White "FM_Deuteronomio32"]
[Black "grandcoach"]
[Result "1-0"]
[WhiteElo "2234"]
[BlackElo "1848"]
[TimeControl "180+1"]
[EndTime "11:02:39 PDT"]
[Termination "FM_Deuteronomio32 won on time"]

1. e4 {[%clk 0:03:00.9]} 1... c5 {[%clk 0:02:59.1]} 2. c3 {[%clk 0:02:59.6]}
2... Nf6 {[%clk 0:02:55.7]} 3. e5 {[%clk 0:02:59.9]} 3... Nd5 {[%clk 0:02:55.4]}
4. d4 {[%clk 0:03:00.4]} 4... cxd4 {[%clk 0:02:55.8]} 5. Nf3 {[%clk 0:03:01.1]}
5... Nc6 {[%clk 0:02:54.8]} 6. Bc4 {[%clk 0:02:59.9]} 6... Nb6 {[%clk
0:02:51.4]} 7. Bb3 {[%clk 0:03:00]} 7... d6 {[%clk 0:02:49.4]} 8. exd6 {[%clk
0:02:58.4]} 8... e5 {[%clk 0:02:24.2]} 9. Ng5 {[%clk 0:02:42.6]} 9... Be6 {[%clk
0:01:20.3]} 10. Bxe6 {[%clk 0:02:41.1]} 10... fxe6 {[%clk 0:01:19.7]} 11. Qg4
{[%clk 0:02:41.7]} 11... Qxd6 {[%clk 0:01:14.8]} 12. Nxh7 {[%clk 0:02:31.7]}
12... O-O-O {[%clk 0:01:08.3]} 13. Ng5 {[%clk 0:02:31]} 13... Be7 {[%clk
0:00:31]} 14. O-O {[%clk 0:01:53]} 14... Bxg5 {[%clk 0:00:26.7]} 15. Bxg5 {[%clk
0:01:52.3]} 15... Rdf8 {[%clk 0:00:27.1]} 16. h4 {[%clk 0:01:38.6]} 16... Nd5
{[%clk 0:00:24.7]} 17. cxd4 {[%clk 0:01:30.3]} 17... exd4 {[%clk 0:00:23.3]} 18.
Nd2 {[%clk 0:01:28.3]} 18... Ne5 {[%clk 0:00:19.5]} 19. Qxd4 {[%clk 0:01:20.7]}
19... Kb8 {[%clk 0:00:12.2]} 20. Ne4 {[%clk 0:01:20.1]} 20... Qc7 {[%clk
0:00:10.1]} 21. Rac1 {[%clk 0:01:20.2]} 21... Nc6 {[%clk 0:00:10.3]} 22. Qa4
{[%clk 0:01:03.9]} 22... Nf4 {[%clk 0:00:09.2]} 23. Nc5 {[%clk 0:00:50.4]} 23...
Ne2+ {[%clk 0:00:08.6]} 24. Kh1 {[%clk 0:00:50.8]} 24... Qe5 {[%clk 0:00:03]}
25. Nd7+ {[%clk 0:00:48.6]} 25... Ka8 {[%clk 0:00:01]} 26. Nxe5 {[%clk
0:00:49.5]} 1-0

[Event "*** Titled Tuesday Blitz"]
[Site "Chess.com"]
[Date "2020.04.14"]
[Round "6"]
[White "english_player_89"]
[Black "lhavas"]
[Result "0-1"]
[WhiteElo "2530"]
[BlackElo "2419"]
[TimeControl "180+1"]
[EndTime "11:02:40 PDT"]
[Termination "lhavas won by resignation"]

1. e4 {[%clk 0:03:00.9]} 1... Nf6 {[%clk 0:02:59.3]} 2. e5 {[%clk 0:03:00.8]}
2... Nd5 {[%clk 0:02:59.4]} 3. d4 {[%clk 0:03:01.4]} 3... d6 {[%clk 0:02:59.7]}
4. Nf3 {[%clk 0:03:01.7]} 4... Bg4 {[%clk 0:02:59.2]} 5. Be2 {[%clk 0:03:01.8]}
5... c6 {[%clk 0:02:59.3]} 6. h3 {[%clk 0:03:01.8]} 6... Bxf3 {[%clk 0:02:58.4]}
7. Bxf3 {[%clk 0:03:01.4]} 7... dxe5 {[%clk 0:02:59.3]} 8. dxe5 {[%clk
0:03:02.3]} 8... e6 {[%clk 0:02:59.5]} 9. O-O {[%clk 0:03:00.8]} 9... Nd7 {[%clk
0:02:59.2]} 10. Re1 {[%clk 0:02:59.6]} 10... Qc7 {[%clk 0:02:58.2]} 11. c4
{[%clk 0:02:58.6]} 11... Ne7 {[%clk 0:02:55.8]} 12. Nc3 {[%clk 0:02:27.8]} 12...
Nxe5 {[%clk 0:02:45.6]} 13. Bf4 {[%clk 0:02:20.1]} 13... N7g6 {[%clk 0:02:44.6]}
14. Bh2 {[%clk 0:02:12.6]} 14... Bd6 {[%clk 0:02:37.4]} 15. c5 {[%clk
0:01:55.9]} 15... Nxf3+ {[%clk 0:02:35.7]} 16. Qxf3 {[%clk 0:01:52.4]} 16...
Bxh2+ {[%clk 0:02:35.7]} 17. Kh1 {[%clk 0:01:52.8]} 17... Be5 {[%clk 0:02:29.2]}
18. Ne4 {[%clk 0:01:45.2]} 18... O-O {[%clk 0:02:21.2]} 19. g3 {[%clk
0:01:45.2]} 19... Bxb2 {[%clk 0:02:17.7]} 20. Rab1 {[%clk 0:01:43.4]} 20... Bd4
{[%clk 0:02:16.9]} 21. h4 {[%clk 0:01:43]} 21... Ne5 {[%clk 0:02:11.2]} 22. Qf4
{[%clk 0:01:30.7]} 22... Qa5 {[%clk 0:01:58.7]} 23. Ng5 {[%clk 0:01:19.4]} 23...
Qxc5 {[%clk 0:01:22]} 24. Red1 {[%clk 0:01:18.2]} 24... Rad8 {[%clk 0:01:18.7]}
25. Rxb7 {[%clk 0:01:15.4]} 25... Be3 {[%clk 0:01:08.2]} 26. Rxd8 {[%clk
0:00:55.9]} 26... Bxf4 {[%clk 0:01:05]} 27. Rxf8+ {[%clk 0:00:55.5]} 27... Qxf8
{[%clk 0:01:03.1]} 28. gxf4 {[%clk 0:00:54.6]} 28... h6 {[%clk 0:00:53.6]} 29.
Ne4 {[%clk 0:00:44.7]} 29... Ng6 {[%clk 0:00:53.3]} 30. Rxa7 {[%clk 0:00:41]}
30... Nxf4 {[%clk 0:00:50.7]} 31. a4 {[%clk 0:00:37.7]} 31... Qa3 {[%clk
0:00:47.2]} 32. Ng3 {[%clk 0:00:31.1]} 32... Qf3+ {[%clk 0:00:45.9]} 0-1

[Event "*** Titled Tuesday Blitz"]
[Site "Chess.com"]
[Date "2020.04.14"]
[Round "6"]
[White "ZenBull"]
[Black "ADODOVE"]
[Result "0-1"]
[WhiteElo "2104"]
[BlackElo "1820"]
[TimeControl "180+1"]
[EndTime "11:02:41 PDT"]
[Termination "ADODOVE won on time"]

1. Nf3 {[%clk 0:03:00.9]} 1... Nf6 {[%clk 0:02:59.2]} 2. c4 {[%clk 0:03:01]}
2... e6 {[%clk 0:02:58.4]} 3. g3 {[%clk 0:02:58.6]} 3... d5 {[%clk 0:02:57.1]}
4. d4 {[%clk 0:02:57.7]} 4... dxc4 {[%clk 0:02:54.2]} 5. Bg2 {[%clk 0:02:57.2]}
5... a6 {[%clk 0:02:53.6]} 6. O-O {[%clk 0:02:41.2]} 6... b5 {[%clk 0:02:50.1]}
7. b3 {[%clk 0:02:08.7]} 7... cxb3 {[%clk 0:02:40.6]} 8. axb3 {[%clk 0:02:08.8]}
8... Bb7 {[%clk 0:02:39.5]} 9. Nbd2 {[%clk 0:01:54.3]} 9... c5 {[%clk
0:02:33.2]} 10. Bb2 {[%clk 0:01:44.2]} 10... Nbd7 {[%clk 0:02:31.2]} 11. e3
{[%clk 0:01:23.7]} 11... cxd4 {[%clk 0:02:16.9]} 12. Bxd4 {[%clk 0:01:23.2]}
12... Bc5 {[%clk 0:02:16]} 13. Bb2 {[%clk 0:01:12]} 13... O-O {[%clk 0:02:14.2]}
14. Qe2 {[%clk 0:01:11.6]} 14... Qb6 {[%clk 0:02:02.8]} 15. Rfc1 {[%clk
0:01:05]} 15... Rac8 {[%clk 0:02:01.1]} 16. Bf1 {[%clk 0:00:50.6]} 16... Rfd8
{[%clk 0:01:59.1]} 17. h4 {[%clk 0:00:43.1]} 17... Bd6 {[%clk 0:01:52.2]} 18.
Ng5 {[%clk 0:00:39.2]} 18... h6 {[%clk 0:01:47.3]} 19. Nh3 {[%clk 0:00:38]}
19... Rxc1 {[%clk 0:01:45.3]} 20. Rxc1 {[%clk 0:00:36.5]} 20... Rc8 {[%clk
0:01:45.4]} 21. Rxc8+ {[%clk 0:00:28.4]} 21... Bxc8 {[%clk 0:01:45]} 22. g4
{[%clk 0:00:27.1]} 22... Bb7 {[%clk 0:01:39.5]} 23. g5 {[%clk 0:00:27.1]} 23...
Qc6 {[%clk 0:01:34]} 24. f3 {[%clk 0:00:19.4]} 24... hxg5 {[%clk 0:01:32.6]} 25.
hxg5 {[%clk 0:00:19.2]} 25... Ng4 {[%clk 0:01:28.5]} 26. Nf2 {[%clk 0:00:11.5]}
26... Nxf2 {[%clk 0:01:20.8]} 27. Qxf2 {[%clk 0:00:12.4]} 27... Qd5 {[%clk
0:01:13.5]} 28. Ne4 {[%clk 0:00:11.4]} 28... Ne5 {[%clk 0:01:07.2]} 29. Bg2
{[%clk 0:00:09.3]} 29... Qd1+ {[%clk 0:01:04.1]} 30. Kh2 {[%clk 0:00:09.2]}
30... Bxe4 {[%clk 0:01:02.7]} 31. fxe4 {[%clk 0:00:09]} 31... Nd3+ {[%clk
0:01:01.7]} 0-1

[Event "*** Titled Tuesday Blitz"]
[Site "Chess.com"]
[Date "2020.04.14"]
[Round "6"]
[White "ReyesBraulio"]
[Black "j2806"]
[Result "1-0"]
[WhiteElo "2165"]
[BlackElo "1999"]
[TimeControl "180+1"]
[EndTime "11:02:42 PDT"]
[Termination "ReyesBraulio won by checkmate"]

1. d4 {[%clk 0:03:00.9]} 1... Nf6 {[%clk 0:02:59.6]} 2. f4 {[%clk 0:03:00.8]}
2... d5 {[%clk 0:02:58.1]} 3. Nf3 {[%clk 0:03:00.9]} 3... e6 {[%clk 0:02:57.7]}
4. e3 {[%clk 0:03:01.1]} 4... c5 {[%clk 0:02:55.8]} 5. c3 {[%clk 0:02:59.7]}
5... Nc6 {[%clk 0:02:55.2]} 6. Bd3 {[%clk 0:02:59.7]} 6... Ne4 {[%clk
0:02:51.5]} 7. O-O {[%clk 0:02:57.8]} 7... Be7 {[%clk 0:02:49.4]} 8. Ne5 {[%clk
0:02:57.7]} 8... Qc7 {[%clk 0:02:44.7]} 9. Bxe4 {[%clk 0:02:56.2]} 9... dxe4
{[%clk 0:02:43.6]} 10. Nd2 {[%clk 0:02:56.8]} 10... f5 {[%clk 0:02:35.8]} 11.
Qh5+ {[%clk 0:02:55.7]} 11... g6 {[%clk 0:02:30]} 12. Nxg6 {[%clk 0:02:55]}
12... hxg6 {[%clk 0:02:20.5]} 13. Qxh8+ {[%clk 0:02:53.9]} 13... Bf8 {[%clk
0:02:19.3]} 14. Nc4 {[%clk 0:02:28.5]} 14... cxd4 {[%clk 0:02:11.1]} 15. exd4
{[%clk 0:02:26.4]} 15... Nxd4 {[%clk 0:01:59]} 16. Ne5 {[%clk 0:02:16.3]} 16...
Ne2+ {[%clk 0:01:44.6]} 17. Kh1 {[%clk 0:02:13]} 17... Nxc1 {[%clk 0:01:38.7]}
18. Nxg6 {[%clk 0:02:06.3]} 18... Qf7 {[%clk 0:01:14.7]} 19. Nxf8 {[%clk
0:02:05.2]} 19... Qxf8 {[%clk 0:01:13.8]} 20. Qxf8+ {[%clk 0:02:04.6]} 20...
Kxf8 {[%clk 0:01:13.5]} 21. Raxc1 {[%clk 0:02:05.2]} 21... Bd7 {[%clk
0:01:11.1]} 22. Rcd1 {[%clk 0:02:05.3]} 22... Bb5 {[%clk 0:01:08.5]} 23. Rfe1
{[%clk 0:02:00.3]} 23... Bd3 {[%clk 0:01:07.9]} 24. Kg1 {[%clk 0:01:54.9]} 24...
Kf7 {[%clk 0:01:06.2]} 25. Kf2 {[%clk 0:01:55]} 25... Kf6 {[%clk 0:01:05.8]} 26.
Ke3 {[%clk 0:01:55.2]} 26... Rd8 {[%clk 0:01:04.1]} 27. Rd2 {[%clk 0:01:52.4]}
27... e5 {[%clk 0:01:03]} 28. fxe5+ {[%clk 0:01:44.5]} 28... Kxe5 {[%clk
0:01:02.4]} 29. g3 {[%clk 0:01:45]} 29... Rd6 {[%clk 0:00:54.9]} 30. Red1 {[%clk
0:01:43.2]} 30... Rh6 {[%clk 0:00:46.5]} 31. h4 {[%clk 0:01:36.1]} 31... Rg6
{[%clk 0:00:45.5]} 32. Rg1 {[%clk 0:01:35.7]} 32... Rg4 {[%clk 0:00:38.3]} 33.
Rxd3 {[%clk 0:01:32.7]} 33... exd3 {[%clk 0:00:37]} 34. Kxd3 {[%clk 0:01:32.8]}
34... Kd5 {[%clk 0:00:31.3]} 35. Ke3 {[%clk 0:01:27.5]} 35... f4+ {[%clk
0:00:24.5]} 36. Kf3 {[%clk 0:01:27.6]} 36... Rxg3+ {[%clk 0:00:21.2]} 37. Rxg3
{[%clk 0:01:26.9]} 37... fxg3 {[%clk 0:00:21.2]} 38. Kxg3 {[%clk 0:01:27.1]}
38... Ke4 {[%clk 0:00:21.2]} 39. h5 {[%clk 0:01:26.2]} 39... Kf5 {[%clk
0:00:21.1]} 40. Kh4 {[%clk 0:01:26.5]} 40... Kf6 {[%clk 0:00:21.4]} 41. Kg4
{[%clk 0:01:25.4]} 41... Kg7 {[%clk 0:00:21.7]} 42. Kg5 {[%clk 0:01:25.7]} 42...
Kh7 {[%clk 0:00:21.8]} 43. h6 {[%clk 0:01:25.5]} 43... Kg8 {[%clk 0:00:22]} 44.
Kg6 {[%clk 0:01:25.5]} 44... Kh8 {[%clk 0:00:22.5]} 45. b4 {[%clk 0:01:25.5]}
45... b5 {[%clk 0:00:21.8]} 46. h7 {[%clk 0:01:21.4]} 46... a6 {[%clk
0:00:21.1]} 47. a3 {[%clk 0:01:20.6]} 47... a5 {[%clk 0:00:20]} 48. bxa5 {[%clk
0:01:20.6]} 48... b4 {[%clk 0:00:20.3]} 49. a6 {[%clk 0:01:20.5]} 49... b3
{[%clk 0:00:20.3]} 50. a7 {[%clk 0:01:20.3]} 50... b2 {[%clk 0:00:20.2]} 51.
a8=R# {[%clk 0:01:19.2]} 1-0

[Event "*** Titled Tuesday Blitz"]
[Site "Chess.com"]
[Date "2020.04.14"]
[Round "6"]
[White "mirciulica14"]
[Black "binbin239"]
[Result "0-1"]
[WhiteElo "2606"]
[BlackElo "2474"]
[TimeControl "180+1"]
[EndTime "11:02:43 PDT"]
[Termination "binbin239 won on time"]

1. d4 {[%clk 0:03:00.9]} 1... Nf6 {[%clk 0:02:59.5]} 2. c4 {[%clk 0:03:01.4]}
2... g6 {[%clk 0:02:59.6]} 3. g3 {[%clk 0:03:01.7]} 3... Bg7 {[%clk 0:02:59.7]}
4. Bg2 {[%clk 0:03:02.5]} 4... d5 {[%clk 0:03:00.4]} 5. cxd5 {[%clk 0:03:02.2]}
5... Nxd5 {[%clk 0:03:00.9]} 6. e4 {[%clk 0:03:03]} 6... Nb6 {[%clk 0:03:01.3]}
7. Ne2 {[%clk 0:03:03.7]} 7... c5 {[%clk 0:03:01.7]} 8. d5 {[%clk 0:02:48.9]}
8... O-O {[%clk 0:03:00.6]} 9. O-O {[%clk 0:02:48.7]} 9... e6 {[%clk 0:03:01.1]}
10. Nbc3 {[%clk 0:02:49.4]} 10... exd5 {[%clk 0:03:01.1]} 11. exd5 {[%clk
0:02:50.3]} 11... Na6 {[%clk 0:03:01.5]} 12. Bf4 {[%clk 0:02:50]} 12... Bf5
{[%clk 0:02:59.6]} 13. d6 {[%clk 0:02:48.4]} 13... Nb4 {[%clk 0:02:56.6]} 14.
Bxb7 {[%clk 0:02:43.3]} 14... Rb8 {[%clk 0:02:56.7]} 15. Be4 {[%clk 0:02:43.9]}
15... Bxe4 {[%clk 0:02:49.9]} 16. Nxe4 {[%clk 0:02:44.8]} 16... N4d5 {[%clk
0:02:44.4]} 17. Nxc5 {[%clk 0:02:34.6]} 17... Bxb2 {[%clk 0:02:40.9]} 18. Rb1
{[%clk 0:02:33.6]} 18... Bg7 {[%clk 0:02:40.2]} 19. d7 {[%clk 0:02:14.2]} 19...
Nxf4 {[%clk 0:02:33.4]} 20. Nxf4 {[%clk 0:02:15.1]} 20... Qe7 {[%clk 0:02:27.1]}
21. Rb5 {[%clk 0:01:41.9]} 21... Nxd7 {[%clk 0:01:56]} 22. Re1 {[%clk 0:01:42]}
22... Ne5 {[%clk 0:01:45.1]} 23. Rxb8 {[%clk 0:01:28.9]} 23... Rxb8 {[%clk
0:01:44.3]} 24. Ncd3 {[%clk 0:01:08]} 24... Qd6 {[%clk 0:01:25.9]} 25. Nxe5
{[%clk 0:01:01.2]} 25... Bxe5 {[%clk 0:01:25.3]} 26. Qxd6 {[%clk 0:00:08.4]}
26... Bxd6 {[%clk 0:01:25.3]} 27. Nd5 {[%clk 0:00:08.3]} 27... Rb2 {[%clk
0:01:24.6]} 28. Re8+ {[%clk 0:00:05.6]} 28... Kg7 {[%clk 0:01:24.4]} 29. Nc3
{[%clk 0:00:06.2]} 29... Rc2 {[%clk 0:01:22.8]} 30. Ne4 {[%clk 0:00:03.9]} 30...
Bc7 {[%clk 0:01:23]} 31. Re7 {[%clk 0:00:02.9]} 31... Bb6 {[%clk 0:01:23.4]} 32.
a4 {[%clk 0:00:03.2]} 32... Kf8 {[%clk 0:01:20.2]} 33. Rb7 {[%clk 0:00:01.8]}
33... Re2 {[%clk 0:01:20.2]} 34. a5 {[%clk 0:00:01.2]} 34... Bd4 {[%clk
0:01:18.3]} 0-1

[Event "*** Titled Tuesday Blitz"]
[Site "Chess.com"]
[Date "2020.04.14"]
[Round "6"]
[White "ljuks68"]
[Black "regular_legs"]
[Result "1-0"]
[WhiteElo "2358"]
[BlackElo "2510"]
[TimeControl "180+1"]
[EndTime "11:02:46 PDT"]
[Termination "ljuks68 won by resignation"]

1. e4 {[%clk 0:02:57.8]} 1... c6 {[%clk 0:02:59.5]} 2. d4 {[%clk 0:02:57]} 2...
d5 {[%clk 0:03:00.4]} 3. e5 {[%clk 0:02:57.3]} 3... Bf5 {[%clk 0:03:00.1]} 4.
Nd2 {[%clk 0:02:57.8]} 4... e6 {[%clk 0:02:59.8]} 5. Nb3 {[%clk 0:02:58.2]} 5...
Nd7 {[%clk 0:03:00.4]} 6. Nf3 {[%clk 0:02:58.4]} 6... Qc7 {[%clk 0:02:59.3]} 7.
Be2 {[%clk 0:02:57]} 7... f6 {[%clk 0:02:59.3]} 8. Bf4 {[%clk 0:02:53.1]} 8...
O-O-O {[%clk 0:02:43.9]} 9. Bg3 {[%clk 0:02:51.6]} 9... fxe5 {[%clk 0:02:42]}
10. Nxe5 {[%clk 0:02:49.2]} 10... Nxe5 {[%clk 0:02:34.9]} 11. Bxe5 {[%clk
0:02:47]} 11... Bd6 {[%clk 0:02:34.5]} 12. f4 {[%clk 0:02:46.8]} 12... Nf6
{[%clk 0:02:25.4]} 13. O-O {[%clk 0:02:38.2]} 13... Ne4 {[%clk 0:02:15.7]} 14.
Bf3 {[%clk 0:02:22.9]} 14... b6 {[%clk 0:01:50]} 15. a4 {[%clk 0:02:20.1]} 15...
c5 {[%clk 0:01:49.1]} 16. a5 {[%clk 0:02:07.7]} 16... c4 {[%clk 0:01:47.7]} 17.
Nd2 {[%clk 0:02:06.8]} 17... Nxd2 {[%clk 0:01:44.1]} 18. Qxd2 {[%clk 0:02:05.5]}
18... Bxe5 {[%clk 0:01:38.3]} 19. fxe5 {[%clk 0:01:57.6]} 19... Kb7 {[%clk
0:01:30.1]} 20. Qb4 {[%clk 0:01:50.5]} 20... Bxc2 {[%clk 0:01:27.5]} 21. Bg4
{[%clk 0:01:47.9]} 21... Rhe8 {[%clk 0:01:19.3]} 22. axb6 {[%clk 0:01:13.5]}
22... axb6 {[%clk 0:01:11.5]} 23. Qb5 {[%clk 0:01:13.5]} 23... Ra8 {[%clk
0:01:02.6]} 24. Rxa8 {[%clk 0:01:11.9]} 24... Rxa8 {[%clk 0:00:59.3]} 25. Bxe6
{[%clk 0:01:11.6]} 25... Ra5 {[%clk 0:00:57]} 26. Bxd5+ {[%clk 0:00:37.5]} 26...
Ka7 {[%clk 0:00:56.6]} 27. Qxc4 {[%clk 0:00:37.2]} 27... Qxc4 {[%clk 0:00:51.3]}
28. Bxc4 {[%clk 0:00:37.2]} 28... Ra4 {[%clk 0:00:51.7]} 29. Rf7+ {[%clk
0:00:34.2]} 29... Kb8 {[%clk 0:00:51.5]} 30. b3 {[%clk 0:00:32.7]} 30... Rb4
{[%clk 0:00:51.1]} 31. e6 {[%clk 0:00:30.5]} 31... Bg6 {[%clk 0:00:50.1]} 32. e7
{[%clk 0:00:29.9]} 1-0

[Event "*** Titled Tuesday Blitz"]
[Site "Chess.com"]
[Date "2020.04.14"]
[Round "6"]
[White "Frolyanov_D"]
[Black "Zq1"]
[Result "1-0"]
[WhiteElo "2782"]
[BlackElo "2578"]
[TimeControl "180+1"]
[EndTime "11:02:48 PDT"]
[Termination "Frolyanov_D won by resignation"]

1. e4 {[%clk 0:03:00.9]} 1... c5 {[%clk 0:02:59.2]} 2. Nf3 {[%clk 0:02:59.8]}
2... d6 {[%clk 0:02:59.3]} 3. d4 {[%clk 0:02:58.2]} 3... cxd4 {[%clk 0:02:58.9]}
4. Nxd4 {[%clk 0:02:58.8]} 4... Nf6 {[%clk 0:02:58.5]} 5. Nc3 {[%clk 0:02:59.3]}
5... Nc6 {[%clk 0:02:58.7]} 6. Bg5 {[%clk 0:02:58.1]} 6... e6 {[%clk 0:02:58.2]}
7. Qd2 {[%clk 0:02:58.2]} 7... Be7 {[%clk 0:02:58.1]} 8. O-O-O {[%clk
0:02:57.6]} 8... O-O {[%clk 0:02:56.8]} 9. f4 {[%clk 0:02:57.6]} 9... h6 {[%clk
0:02:53.8]} 10. Bh4 {[%clk 0:02:57]} 10... Qb6 {[%clk 0:02:49.3]} 11. Bf2 {[%clk
0:02:34.4]} 11... Qc7 {[%clk 0:02:48.7]} 12. Ndb5 {[%clk 0:02:30]} 12... Qa5
{[%clk 0:02:47.8]} 13. Be2 {[%clk 0:01:48.7]} 13... Rd8 {[%clk 0:02:36.4]} 14.
Kb1 {[%clk 0:01:45.6]} 14... a6 {[%clk 0:02:31.4]} 15. Nd4 {[%clk 0:01:45.6]}
15... e5 {[%clk 0:02:01.2]} 16. Nxc6 {[%clk 0:01:42.6]} 16... bxc6 {[%clk
0:01:57.2]} 17. Nd5 {[%clk 0:01:43.1]} 17... Qxd2 {[%clk 0:01:52]} 18. Nxe7+
{[%clk 0:01:42.9]} 18... Kf8 {[%clk 0:01:51.7]} 19. Rxd2 {[%clk 0:01:43.2]}
19... Nxe4 {[%clk 0:01:27.7]} 20. Nxc6 {[%clk 0:01:42.7]} 20... Nxd2+ {[%clk
0:01:27.1]} 21. Kc1 {[%clk 0:01:41.7]} 21... Ne4 {[%clk 0:01:19.4]} 22. Be3
{[%clk 0:01:39.1]} 22... Re8 {[%clk 0:01:01.5]} 23. Bf3 {[%clk 0:01:39.5]} 23...
f5 {[%clk 0:00:57.6]} 24. g4 {[%clk 0:01:40]} 24... exf4 {[%clk 0:00:38.6]} 25.
Bxf4 {[%clk 0:01:39.7]} 25... d5 {[%clk 0:00:39]} 26. gxf5 {[%clk 0:01:32.4]}
26... Bxf5 {[%clk 0:00:38.1]} 27. Rd1 {[%clk 0:01:31.9]} 27... Nf6 {[%clk
0:00:33.9]} 28. Bxd5 {[%clk 0:01:18.9]} 28... Nxd5 {[%clk 0:00:33.3]} 29. Rxd5
{[%clk 0:01:19.8]} 29... Be4 {[%clk 0:00:32.5]} 30. Rd6 {[%clk 0:01:16.5]} 30...
Bxc6 {[%clk 0:00:30.4]} 31. Rxc6 {[%clk 0:01:17.4]} 31... Re2 {[%clk 0:00:27.8]}
32. b4 {[%clk 0:01:12.2]} 32... Kg8 {[%clk 0:00:23]} 33. a4 {[%clk 0:01:11.6]}
33... Re4 {[%clk 0:00:19.5]} 34. Bd6 {[%clk 0:01:10.2]} 34... a5 {[%clk
0:00:14.5]} 35. b5 {[%clk 0:01:09.1]} 35... Rxa4 {[%clk 0:00:14.4]} 36. b6
{[%clk 0:01:07.7]} 36... Re8 {[%clk 0:00:10.3]} 37. b7 {[%clk 0:01:05.8]} 37...
Re1+ {[%clk 0:00:07.3]} 38. Kb2 {[%clk 0:01:04.4]} 1-0

[Event "*** Titled Tuesday Blitz"]
[Site "Chess.com"]
[Date "2020.04.14"]
[Round "6"]
[White "RaunakSadhwani2005"]
[Black "Fh2411"]
[Result "0-1"]
[WhiteElo "2789"]
[BlackElo "2546"]
[TimeControl "180+1"]
[EndTime "11:02:50 PDT"]
[Termination "Fh2411 won by resignation"]

1. c4 {[%clk 0:03:00.9]} 1... c6 {[%clk 0:02:58.1]} 2. Nf3 {[%clk 0:03:00.2]}
2... d5 {[%clk 0:02:57.8]} 3. e3 {[%clk 0:03:01.1]} 3... Nf6 {[%clk 0:02:57.7]}
4. Nc3 {[%clk 0:03:00.8]} 4... a6 {[%clk 0:02:49.7]} 5. b3 {[%clk 0:02:59.7]}
5... Bf5 {[%clk 0:02:46]} 6. Bb2 {[%clk 0:02:59.7]} 6... e6 {[%clk 0:02:37.1]}
7. Be2 {[%clk 0:02:59.9]} 7... Nbd7 {[%clk 0:02:36.7]} 8. O-O {[%clk 0:03:00]}
8... h6 {[%clk 0:02:36.5]} 9. a4 {[%clk 0:02:57]} 9... Be7 {[%clk 0:02:34.9]}
10. d4 {[%clk 0:02:56.4]} 10... O-O {[%clk 0:02:34.2]} 11. Ne1 {[%clk
0:02:56.6]} 11... Bb4 {[%clk 0:02:26]} 12. Nd3 {[%clk 0:02:52.3]} 12... Bd6
{[%clk 0:02:18.5]} 13. Ba3 {[%clk 0:02:45.5]} 13... Bxa3 {[%clk 0:02:11.7]} 14.
Rxa3 {[%clk 0:02:46.4]} 14... Qe7 {[%clk 0:02:02.8]} 15. Ra1 {[%clk 0:02:46.9]}
15... Bxd3 {[%clk 0:01:53.6]} 16. Bxd3 {[%clk 0:02:47.8]} 16... e5 {[%clk
0:01:54.2]} 17. cxd5 {[%clk 0:02:47.2]} 17... exd4 {[%clk 0:01:54]} 18. exd4
{[%clk 0:02:44.6]} 18... Nxd5 {[%clk 0:01:49.2]} 19. Nxd5 {[%clk 0:02:44.7]}
19... cxd5 {[%clk 0:01:50.1]} 20. Qf3 {[%clk 0:02:45.1]} 20... Nf6 {[%clk
0:01:49.4]} 21. Rfe1 {[%clk 0:02:45.5]} 21... Qb4 {[%clk 0:01:47]} 22. Rad1
{[%clk 0:02:45.4]} 22... Rfe8 {[%clk 0:01:43.6]} 23. Re5 {[%clk 0:02:45.2]}
23... Kf8 {[%clk 0:01:40.7]} 24. Bf5 {[%clk 0:02:39.5]} 24... Re7 {[%clk
0:01:35.8]} 25. h3 {[%clk 0:02:20.8]} 25... Rae8 {[%clk 0:01:33.4]} 26. Qg3
{[%clk 0:02:14.8]} 26... Qd6 {[%clk 0:01:00.2]} 27. f4 {[%clk 0:02:07.2]} 27...
Ne4 {[%clk 0:00:55.8]} 28. Qf3 {[%clk 0:02:03.2]} 28... f6 {[%clk 0:00:54]} 29.
Bg6 {[%clk 0:01:57.1]} 29... Qb6 {[%clk 0:00:45.3]} 30. Kh2 {[%clk 0:01:26]}
30... fxe5 {[%clk 0:00:37.2]} 31. fxe5+ {[%clk 0:01:26.1]} 31... Kg8 {[%clk
0:00:37.4]} 32. Bxe8 {[%clk 0:01:24.9]} 32... Rxe8 {[%clk 0:00:37.4]} 33. Rf1
{[%clk 0:01:25.4]} 33... Qe6 {[%clk 0:00:36]} 34. Qd3 {[%clk 0:01:20.2]} 34...
Rf8 {[%clk 0:00:33.4]} 35. Rc1 {[%clk 0:01:20.7]} 35... Rf7 {[%clk 0:00:31.6]}
36. Qe3 {[%clk 0:01:17.9]} 36... Kh7 {[%clk 0:00:30.4]} 37. Rc2 {[%clk
0:01:17.3]} 37... Qg6 {[%clk 0:00:30.4]} 38. Re2 {[%clk 0:01:16.9]} 38... Qg5
{[%clk 0:00:27.3]} 39. Qd3 {[%clk 0:01:15.5]} 39... Qf4+ {[%clk 0:00:26.8]} 40.
Kg1 {[%clk 0:01:15.3]} 40... Qf1+ {[%clk 0:00:26.5]} 41. Kh2 {[%clk 0:01:15.5]}
41... Rf2 {[%clk 0:00:26.2]} 0-1